fUST/lending_fUST_20250812
["ID","MTS","AMOUNT","RATE_DAILY","PERIOD"]
[378654561,1754944260377,-151.0,0.0002,2]
[378654562,1754944260386,-151.0,0.0002,2]
[378654563,1754944260395,-151.0,0.0002,2]
[378654564,1754944260404,-151.0,0.0002,2]
[378654565,1754944260412,-151.0,0.0002,2]
[378654566,1754944260421,-151.0,0.0002,2]
[378654567,1754944260430,-151.0,0.0002,2]
[378654568,1754944260439,-151.0,0.0002,2]
[378654569,1754944260447,-151.0,0.0002,2]
[378654570,1754944260457,-151.0,0.0002,2]
[378654571,1754944260465,-228.517911,0.0002,2]
[378654572,1754944260474,-151.0,0.0002,2]
[378654573,1754944260483,-177.852935,0.0002,2]
[378654574,1754944260492,-460.0,0.0002,2]
[378654575,1754944260501,-460.0,0.0002,2]
[378654576,1754944260510,-151.0,0.0002,2]
[378654577,1754944260519,-151.0,0.0002,2]
[378654578,1754944260528,-460.0,0.0002,2]
[378654579,1754944260536,-460.0,0.0002,2]
[378654580,1754944260545,-460.0,0.0002,2]
[378654581,1754944260554,-460.0,0.0002,2]
[378654582,1754944260563,-460.0,0.0002,2]
[378654583,1754944260572,-460.0,0.0002,2]
[378654584,1754944260581,-460.0,0.0002,2]
[378654585,1754944260590,-460.0,0.0002,2]
[378654586,1754944260599,-460.0,0.0002,2]
[378654587,1754944260608,-460.0,0.0002,2]
[378654588,1754944260617,-460.0,0.0002,2]
[378654589,1754944260627,-503.14,0.0002,2]
[378654590,1754944260636,-460.0,0.0002,2]
[378654591,1754944260645,-460.0,0.0002,2]
[378654592,1754944260654,-467.18,0.0002,2]
[378654593,1754944260663,-1028.23,0.0002,2]
[378654594,1754944260673,-460.0,0.0002,2]
[378654595,1754944260683,-460.0,0.0002,2]
[378654596,1754944260692,-460.0,0.0002,2]
[378654597,1754944260702,-941.44,0.0002,2]
[378654598,1754944260711,-151.0,0.0002,2]
[378654599,1754944260721,-151.0,0.0002,2]
[378654600,1754944260730,-460.0,0.0002,2]
[378654601,1754944260739,-151.0,0.0002,2]
[378654602,1754944260748,-460.0,0.0002,2]
[378654603,1754944260758,-1288.89,0.0002,2]
[378654604,1754944260767,-464.32751877,0.0002,2]
[378654605,1754944260776,-472.71,0.0002,2]
[378654606,1754944260785,-460.0,0.0002,2]
[378654607,1754944260794,-460.0,0.0002,2]
[378654608,1754944260804,-460.0,0.0002,2]
[378654609,1754944260815,-584.65,0.0002,2]
[378654610,1754944260826,-460.0,0.0002,2]
[378654611,1754944260836,-460.0,0.0002,2]
[378654612,1754944260846,-460.0,0.0002,2]
[378654613,1754944260856,-151.0,0.0002,2]
[378654614,1754944260866,-460.0,0.0002,2]
[378654615,1754944260875,-460.0,0.0002,2]
[378654616,1754944260884,-460.0,0.0002,2]
[378654617,1754944260895,-460.0,0.0002,2]
[378654618,1754944260904,-460.0,0.0002,2]
[378654619,1754944260913,-460.0,0.0002,2]
[378654620,1754944260922,-460.0,0.0002,2]
[378654621,1754944260932,-462.17,0.0002,2]
[378654622,1754944260941,-3532.8,0.0002,2]
[378654623,1754944260950,-460.0,0.0002,2]
[378654624,1754944260959,-460.0,0.0002,2]
[378654625,1754944260968,-460.0,0.0002,2]
[378654626,1754944260978,-460.0,0.0002,2]
[378654627,1754944260987,-460.0,0.0002,2]
[378654628,1754944260996,-460.0,0.0002,2]
[378654629,1754944261005,-460.0,0.0002,2]
[378654630,1754944261014,-460.0,0.0002,2]
[378654631,1754944261023,-500.0,0.0002,2]
[378654632,1754944261083,-500.0,0.0002,2]
[378654633,1754944261093,-500.0,0.0002,2]
[378654634,1754944261102,-500.0,0.0002,2]
[378654635,1754944261111,-500.0,0.0002,2]
[378654636,1754944261120,-500.0,0.0002,2]
[378654637,1754944261130,-460.0,0.0002,2]
[378654638,1754944261139,-460.0,0.0002,2]
[378654639,1754944261148,-460.0,0.0002,2]
[378654640,1754944261157,-465.54300267,0.0002,2]
[378654641,1754944261166,-460.0,0.0002,2]
[378654642,1754944261175,-460.0,0.0002,2]
[378654643,1754944261184,-460.0,0.0002,2]
[378654644,1754944261194,-500.0,0.0002,2]
[378654645,1754944261203,-463.15122904,0.0002,2]
[378654646,1754944261212,-272.826563,0.0002,2]
[378654647,1754944261222,-272.826563,0.0002,2]
[378654648,1754944261231,-272.826563,0.0002,2]
[378654649,1754944261240,-460.0,0.0002,2]
[378654650,1754944261250,-460.0,0.0002,2]
[378654651,1754944261260,-460.0,0.0002,2]
[378654652,1754944261269,-539.06,0.0002,2]
[378654653,1754944261279,-909.29,0.0002,2]
[378654654,1754944261288,-272.826563,0.0002,2]
[378654655,1754944261297,-272.826563,0.0002,2]
[378654656,1754944261307,-272.826563,0.0002,2]
[378654657,1754944261316,-151.0,0.0002,2]
[378654658,1754944261325,-151.0,0.0002,2]
[378654659,1754944261334,-172.5513,0.0002,2]
[378654660,1754944261343,-425.58759968,0.0002,2]
[378654661,1754944261352,-712.57,0.0002,2]
[378654662,1754944261361,-460.0,0.0002,2]
[378654663,1754944261370,-460.0,0.0002,2]
[378654664,1754944261379,-460.0,0.0002,2]
[378654665,1754944261388,-460.0,0.0002,2]
[378654666,1754944261397,-1595.13,0.0002,2]
[378654667,1754944261406,-460.0,0.0002,2]
[378654668,1754944261414,-460.0,0.0002,2]
[378654669,1754944261423,-460.0,0.0002,2]
[378654670,1754944261432,-4664.43,0.0002,2]
[378654671,1754944261441,-460.0,0.0002,2]
[378654672,1754944261450,-460.0,0.0002,2]
[378654673,1754944261459,-151.0,0.0002,2]
[378654674,1754944261468,-151.0,0.0002,2]
[378654675,1754944261477,-288.063256,0.0002,2]
[378654676,1754944261486,-359.506119,0.0002,2]
[378654677,1754944261496,-460.0,0.0002,2]
[378654678,1754944261505,-359.506119,0.0002,2]
[378654679,1754944261514,-533.99,0.0002,2]
[378654680,1754944261524,-542.72,0.0002,2]
[378654681,1754944261533,-460.0,0.0002,2]
[378654682,1754944261542,-460.0,0.0002,2]
[378654683,1754944261551,-569.27,0.0002,2]
[378654684,1754944261561,-460.0,0.0002,2]
[378654685,1754944261570,-460.0,0.0002,2]
[378654686,1754944261579,-460.0,0.0002,2]
[378654687,1754944261589,-460.0,0.0002,2]
[378654688,1754944261598,-460.0,0.0002,2]
[378654689,1754944261608,-460.0,0.0002,2]
[378654690,1754944261617,-657.06,0.0002,2]
[378654691,1754944261626,-460.0,0.0002,2]
[378654692,1754944261635,-460.0,0.0002,2]
[378654693,1754944261644,-1203.92,0.0002,2]
[378654694,1754944261653,-4030.19,0.0002,2]
[378654695,1754944261663,-460.0,0.0002,2]
[378654696,1754944261671,-460.0,0.0002,2]
[378654697,1754944261681,-460.0,0.0002,2]
[378654698,1754944261690,-743.37,0.0002,2]
[378654699,1754944261699,-1004.8,0.0002,2]
[378654700,1754944261708,-1389.23,0.0002,2]
[378654701,1754944261717,-923.12,0.0002,2]
[378654702,1754944261726,-1348.02,0.0002,2]
[378654703,1754944261735,-460.0,0.0002,2]
[378654704,1754944261744,-475.26,0.0002,2]
[378654705,1754944261753,-460.0,0.0002,2]
[378654706,1754944261762,-750.69,0.0002,2]
[378654707,1754944261771,-460.0,0.0002,2]
[378654708,1754944261780,-460.0,0.0002,2]
[378654709,1754944261789,-3942.56,0.0002,2]
[378654710,1754944261798,-664.71,0.0002,2]
[378654711,1754944261808,-460.0,0.0002,2]
[378654712,1754944261819,-460.0,0.0002,2]
[378654713,1754944261829,-502.11640325,0.0002,2]
[378654714,1754944261838,-460.0,0.0002,2]
[378654715,1754944261847,-460.0,0.0002,2]
[378654716,1754944261857,-460.0,0.0002,2]
[378654717,1754944261866,-460.0,0.0002,2]
[378654718,1754944261875,-460.0,0.0002,2]
[378654719,1754944261884,-734.05,0.0002,2]
[378654720,1754944261894,-460.0,0.0002,2]
[378654721,1754944261904,-511.0,0.0002,2]
[378654722,1754944261913,-460.0,0.0002,2]
[378654723,1754944261923,-815.65,0.0002,2]
[378654724,1754944261932,-460.0,0.0002,2]
[378654725,1754944261941,-460.0,0.0002,2]
[378654726,1754944261951,-460.0,0.0002,2]
[378654727,1754944261960,-904.31,0.0002,2]
[378654728,1754944261969,-460.0,0.0002,2]
[378654729,1754944261979,-1707.08,0.0002,2]
[378654730,1754944261988,-637.0,0.0002,2]
[378654731,1754944261997,-460.0,0.0002,2]
[378654732,1754944262006,-460.0,0.0002,2]
[378654733,1754944262015,-460.0,0.0002,2]
[378654734,1754944262024,-460.0,0.0002,2]
[378654735,1754944262033,-460.0,0.0002,2]
[378654736,1754944262043,-460.0,0.0002,2]
[378654737,1754944262052,-460.0,0.0002,2]
[378654738,1754944262061,-362.445526,0.0002,2]
[378654739,1754944262071,-562.44,0.0002,2]
[378654740,1754944262080,-362.445526,0.0002,2]
[378654741,1754944262090,-362.445526,0.0002,2]
[378654742,1754944262099,-460.0,0.0002,2]
[378654743,1754944262108,-362.445526,0.0002,2]
[378654744,1754944262117,-362.445526,0.0002,2]
[378654745,1754944262127,-362.445526,0.0002,2]
[378654746,1754944262136,-725.16,0.0002,2]
[378654747,1754944262145,-643.21,0.0002,2]
[378654748,1754944262156,-460.0,0.0002,2]
[378654749,1754944262166,-460.0,0.0002,2]
[378654750,1754944262175,-460.0,0.0002,2]
[378654751,1754944262184,-460.0,0.0002,2]
[378654752,1754944262194,-429.81000053,0.0002,2]
[378654753,1754944262203,-460.0,0.0002,2]
[378654754,1754944262212,-2748.24,0.0002,2]
[378654755,1754944262221,-157.810565,0.0002,2]
[378654756,1754944262230,-460.0,0.0002,2]
[378654757,1754944262239,-911.98,0.0002,2]
[378654758,1754944262248,-460.0,0.0002,2]
[378654759,1754944262258,-460.0,0.0002,2]
[378654760,1754944262267,-2510.39,0.0002,2]
[378654761,1754944262276,-460.0,0.0002,2]
[378654762,1754944262286,-460.0,0.0002,2]
[378654763,1754944262295,-460.0,0.0002,2]
[378654764,1754944262305,-616.05,0.0002,2]
[378654765,1754944262313,-1066.02,0.0002,2]
[378654766,1754944262323,-460.0,0.0002,2]
[378654767,1754944262332,-559.8,0.0002,2]
[378654768,1754944262342,-460.0,0.0002,2]
[378654769,1754944262351,-460.0,0.0002,2]
[378654770,1754944262361,-460.0,0.0002,2]
[378654771,1754944262370,-151.0,0.0002,2]
[378654772,1754944262379,-151.0,0.0002,2]
[378654773,1754944262388,-631.89,0.0002,2]
[378654774,1754944262398,-151.0,0.0002,2]
[378654775,1754944262407,-556.67,0.0002,2]
[378654776,1754944262416,-151.0,0.0002,2]
[378654777,1754944262426,-460.0,0.0002,2]
[378654778,1754944262435,-446.17090379,0.0002,2]
[378654779,1754944262444,-689.06,0.0002,2]
[378654780,1754944262454,-1915.99,0.0002,2]
[378654781,1754944262464,-600.18,0.0002,2]
[378654782,1754944262481,-1133.4,0.0002,2]
[378654783,1754944262501,-656.72,0.0002,2]
[378654784,1754944262517,-460.0,0.0002,2]
[378654785,1754944262526,-151.0,0.0002,2]
[378654786,1754944262536,-460.0,0.0002,2]
[378654787,1754944262546,-151.0,0.0002,2]
[378654788,1754944262555,-151.0,0.0002,2]
[378654789,1754944262564,-2182.33,0.0002,2]
[378654790,1754944262573,-818.12,0.0002,2]
[378654791,1754944262582,-777.08,0.0002,2]
[378654792,1754944262592,-763.66,0.0002,2]
[378654793,1754944262601,-460.0,0.0002,2]
[378654794,1754944262610,-1364.229113,0.0002,2]
[378654795,1754944262619,-1364.229113,0.0002,2]
[378654796,1754944262628,-460.0,0.0002,2]
[378654797,1754944262637,-1364.229113,0.0002,2]
[378654798,1754944262646,-901.86,0.0002,2]
[378654799,1754944262655,-1364.229113,0.0002,2]
[378654800,1754944262665,-1364.229113,0.0002,2]
[378654801,1754944262674,-1364.229113,0.0002,2]
[378654802,1754944262683,-460.0,0.0002,2]
[378654803,1754944262692,-460.0,0.0002,2]
[378654804,1754944262702,-460.0,0.0002,2]
[378654805,1754944262711,-1679.48,0.0002,2]
[378654806,1754944262720,-1496.67,0.0002,2]
[378654807,1754944262728,-562.29578521,0.0002,2]
[378654808,1754944262738,-371.458796,0.0002,2]
[378654809,1754944262747,-460.0,0.0002,2]
[378654810,1754944262756,-371.458796,0.0002,2]
[378654811,1754944262765,-159.451413,0.0002,2]
[378654812,1754944262774,-371.458796,0.0002,2]
[378654813,1754944262783,-159.451413,0.0002,2]
[378654814,1754944262793,-159.451413,0.0002,2]
[378654815,1754944262802,-460.0,0.0002,2]
[378654816,1754944262813,-371.458796,0.0002,2]
[378654817,1754944262825,-159.451413,0.0002,2]
[378654818,1754944262836,-371.458796,0.0002,2]
[378654819,1754944262846,-159.451413,0.0002,2]
[378654820,1754944262858,-371.458796,0.0002,2]
[378654821,1754944262867,-159.451413,0.0002,2]
[378654822,1754944262876,-1216.33,0.0002,2]
[378654823,1754944262885,-1257.0,0.0002,2]
[378654824,1754944262896,-460.0,0.0002,2]
[378654825,1754944262906,-2391.8,0.0002,2]
[378654826,1754944262915,-460.0,0.0002,2]
[378654827,1754944262925,-460.0,0.0002,2]
[378654828,1754944262934,-460.0,0.0002,2]
[378654829,1754944262943,-460.0,0.0002,2]
[378654830,1754944262953,-460.0,0.0002,2]
[378654831,1754944262963,-1225.23,0.0002,2]
[378654832,1754944262972,-460.0,0.0002,2]
[378654833,1754944262982,-738.42,0.0002,2]
[378654834,1754944262991,-1621.51,0.0002,2]
[378654835,1754944263000,-460.0,0.0002,2]
[378654836,1754944263010,-460.0,0.0002,2]
[378654837,1754944263019,-553.85,0.0002,2]
[378654838,1754944263028,-460.0,0.0002,2]
[378654839,1754944263037,-151.0,0.0002,2]
[378654840,1754944263047,-460.0,0.0002,2]
[378654841,1754944263058,-713.45,0.0002,2]
[378654842,1754944263068,-151.0,0.0002,2]
[378654843,1754944263078,-460.0,0.0002,2]
[378654844,1754944263090,-460.0,0.0002,2]
[378654845,1754944263100,-479.96,0.0002,2]
[378654846,1754944263111,-795.68,0.0002,2]
[378654847,1754944263122,-640.52,0.0002,2]
[378654848,1754944263133,-460.0,0.0002,2]
[378654849,1754944263142,-460.0,0.0002,2]
[378654850,1754944263154,-460.0,0.0002,2]
[378654851,1754944263164,-460.0,0.0002,2]
[378654852,1754944263174,-460.0,0.0002,2]
[378654853,1754944263184,-460.0,0.0002,2]
[378654854,1754944263194,-513.91771714,0.0002,2]
[378654855,1754944263205,-331.94744192,0.0002,2]
[378654856,1754944263214,-460.0,0.0002,2]
[378654857,1754944263225,-460.0,0.0002,2]
[378654858,1754944263235,-1451.01,0.0002,2]
[378654859,1754944263245,-465.22312419,0.0002,2]
[378654860,1754944263254,-2124.623818,0.0002,2]
[378654861,1754944263264,-460.0,0.0002,2]
[378654862,1754944263274,-2124.623818,0.0002,2]
[378654863,1754944263285,-460.0,0.0002,2]
[378654864,1754944263295,-1059.1,0.0002,2]
[378654865,1754944263305,-2124.623818,0.0002,2]
[378654866,1754944263315,-2124.623818,0.0002,2]
[378654867,1754944263325,-982.18,0.0002,2]
[378654868,1754944263335,-460.0,0.0002,2]
[378654869,1754944263345,-4331.71,0.0002,2]
[378654870,1754944263355,-460.0,0.0002,2]
[378654871,1754944263365,-460.0,0.0002,2]
[378654872,1754944263375,-752.77,0.0002,2]
[378654873,1754944263385,-460.0,0.0002,2]
[378654874,1754944263395,-2992.78,0.0002,2]
[378654875,1754944263405,-460.0,0.0002,2]
[378654876,1754944263415,-460.0,0.0002,2]
[378654877,1754944263425,-495.29,0.0002,2]
[378654878,1754944263435,-460.0,0.0002,2]
[378654879,1754944263445,-616.95,0.0002,2]
[378654880,1754944263455,-3159.21,0.0002,2]
[378654881,1754944263464,-860.47,0.0002,2]
[378654882,1754944263474,-1922.7,0.0002,2]
[378654883,1754944263484,-460.0,0.0002,2]
[378654884,1754944263494,-460.0,0.0002,2]
[378654885,1754944263504,-1207.72,0.0002,2]
[378654886,1754944263514,-1246.7,0.0002,2]
[378654887,1754944263523,-460.0,0.0002,2]
[378654888,1754944263533,-460.0,0.0002,2]
[378654889,1754944263543,-13252.66,0.0002,2]
[378654890,1754944263553,-805.91,0.0002,2]
[378654891,1754944263562,-907.25,0.0002,2]
[378654892,1754944263572,-1421.61,0.0002,2]
[378654893,1754944263581,-460.0,0.0002,2]
[378654894,1754944263591,-460.0,0.0002,2]
[378654895,1754944263601,-593.15,0.0002,2]
[378654896,1754944263610,-1710.77,0.0002,2]
[378654897,1754944263620,-460.0,0.0002,2]
[378654898,1754944263629,-508.53,0.0002,2]
[378654899,1754944263639,-460.0,0.0002,2]
[378654900,1754944263648,-566.85,0.0002,2]
[378654901,1754944263658,-968.94,0.0002,2]
[378654902,1754944263667,-1801.48,0.0002,2]
[378654903,1754944263676,-460.0,0.0002,2]
[378654904,1754944263687,-460.0,0.0002,2]
[378654905,1754944263696,-758.93,0.0002,2]
[378654906,1754944263706,-460.0,0.0002,2]
[378654907,1754944263715,-460.0,0.0002,2]
[378654908,1754944263726,-649.11,0.0002,2]
[378654909,1754944263735,-516.74,0.0002,2]
[378654910,1754944263745,-460.0,0.0002,2]
[378654911,1754944263755,-460.0,0.0002,2]
[378654912,1754944263764,-460.0,0.0002,2]
[378654913,1754944263774,-460.0,0.0002,2]
[378654914,1754944263784,-460.0,0.0002,2]
[378654915,1754944263793,-4873.35,0.0002,2]
[378654916,1754944263803,-460.0,0.0002,2]
[378654917,1754944263815,-460.0,0.0002,2]
[378654918,1754944263824,-1497.21,0.0002,2]
[378654919,1754944263835,-460.0,0.0002,2]
[378654920,1754944263845,-460.0,0.0002,2]
[378654921,1754944263855,-2015.55,0.0002,2]
[378654922,1754944263865,-152.29667673,0.0002,7]
[378654923,1754944263874,-460.0,0.0002,2]
[378654924,1754944263884,-3273.04,0.0002,2]
[378654925,1754944263894,-460.0,0.0002,2]
[378654926,1754944263904,-731.83,0.0002,2]
[378654927,1754944263914,-1265.45,0.0002,2]
[378654928,1754944263923,-460.0,0.0002,2]
[378654929,1754944263933,-460.0,0.0002,2]
[378654930,1754944263942,-460.0,0.0002,2]
[378654931,1754944263952,-460.0,0.0002,2]
[378654932,1754944263962,-460.0,0.0002,2]
[378654933,1754944263972,-460.0,0.0002,2]
[378654934,1754944263981,-460.0,0.0002,2]
[378654935,1754944263991,-460.0,0.0002,2]
[378654936,1754944264001,-826.25,0.0002,2]
[378654937,1754944264010,-1427.08,0.0002,2]
[378654938,1754944264020,-460.0,0.0002,2]
[378654939,1754944264030,-1129.07,0.0002,2]
[378654940,1754944264040,-1411.21,0.0002,2]
[378654941,1754944264050,-460.0,0.0002,2]
[378654942,1754944264060,-460.0,0.0002,2]
[378654943,1754944264069,-151.0,0.0002,2]
[378654944,1754944264079,-871.51,0.0002,2]
[378654945,1754944264091,-151.0,0.0002,2]
[378654946,1754944264100,-569.40625082,0.0002,2]
[378654947,1754944264110,-460.0,0.0002,2]
[378654948,1754944264119,-460.0,0.0002,2]
[378654949,1754944264129,-460.0,0.0002,2]
[378654950,1754944264139,-460.0,0.0002,2]
[378654951,1754944264150,-1010.88,0.0002,2]
[378654952,1754944264160,-4356.6,0.0002,2]
[378654953,1754944264170,-460.0,0.0002,2]
[378654954,1754944264180,-460.0,0.0002,2]
[378654955,1754944264189,-460.0,0.0002,2]
[378654956,1754944264199,-4332.9,0.0002,2]
[378654957,1754944264209,-460.0,0.0002,2]
[378654958,1754944264219,-460.0,0.0002,2]
[378654959,1754944264229,-719.67,0.0002,2]
[378654960,1754944264239,-460.0,0.0002,2]
[378654961,1754944264249,-460.0,0.0002,2]
[378654962,1754944264259,-1536.66,0.0002,2]
[378654963,1754944264269,-460.0,0.0002,2]
[378654964,1754944264279,-787.67,0.0002,2]
[378654965,1754944264289,-1119.95,0.0002,2]
[378654966,1754944264298,-2972.11,0.0002,2]
[378654967,1754944264308,-1408.99,0.0002,2]
[378654968,1754944264317,-569.59,0.0002,2]
[378654969,1754944264327,-460.0,0.0002,2]
[378654970,1754944264339,-460.0,0.0002,2]
[378654971,1754944264349,-460.0,0.0002,2]
[378654972,1754944264359,-460.0,0.0002,2]
[378654973,1754944264368,-460.0,0.0002,2]
[378654974,1754944264378,-460.0,0.0002,2]
[378654975,1754944264388,-513.3,0.0002,2]
[378654976,1754944264398,-1696.05,0.0002,2]
[378654977,1754944264407,-460.0,0.0002,2]
[378654978,1754944264417,-460.0,0.0002,2]
[378654979,1754944264427,-460.0,0.0002,2]
[378654980,1754944264437,-460.0,0.0002,2]
[378654981,1754944264447,-460.0,0.0002,2]
[378654982,1754944264456,-734.19,0.0002,2]
[378654983,1754944264467,-4000.0,0.0002,4]
[378654984,1754944264476,-2472.41,0.0002,2]
[378654985,1754944264486,-164.95449475,0.0002,2]
[378654986,1754944264495,-498.75,0.0002,2]
[378654987,1754944264505,-703.21,0.0002,2]
[378654988,1754944264515,-6364.48,0.0002,2]
[378654989,1754944264525,-460.0,0.0002,2]
[378654990,1754944264539,-460.0,0.0002,2]
[378654991,1754944264549,-632.28,0.0002,2]
[378654992,1754944264560,-1560.99,0.0002,2]
[378654993,1754944264570,-460.0,0.0002,2]
[378654994,1754944264580,-645.0,0.0002,2]
[378654995,1754944264593,-3713.94,0.0002,2]
[378654996,1754944264604,-460.0,0.0002,2]
[378654997,1754944264614,-460.0,0.0002,2]
[378654998,1754944264624,-460.0,0.0002,2]
[378654999,1754944264634,-460.0,0.0002,2]
[378655000,1754944264644,-1051.03,0.0002,2]
[378655001,1754944264654,-460.0,0.0002,2]
[378655002,1754944264665,-472.8,0.0002,2]
[378655003,1754944264675,-270.6636376,0.0002,2]
[378655004,1754944264686,-460.0,0.0002,2]
[378655005,1754944264696,-460.0,0.0002,2]
[378655006,1754944264707,-786.42,0.0002,2]
[378655007,1754944264719,-738.19,0.0002,2]
[378655008,1754944264729,-804.61,0.0002,2]
[378655009,1754944264739,-460.0,0.0002,2]
[378655010,1754944264750,-460.0,0.0002,2]
[378655011,1754944264760,-460.0,0.0002,2]
[378655012,1754944264770,-800.0,0.00020001,2]
[378655013,1754944264780,-600.0,0.00020002,2]
[378655014,1754944264790,-1000.0,0.00020021,2]
[378655015,1754944264800,-250.0,0.00020021,2]
[378655016,1754944264811,-1000.0,0.00020021,2]
[378655017,1754944264823,-1000.0,0.00020021,2]
[378655018,1754944264835,-1000.0,0.00020021,2]
[378655019,1754944264845,-1000.0,0.00020021,2]
[378655020,1754944264855,-1000.0,0.00020021,2]
[378655021,1754944264865,-281.08662514,0.00020021,2]
[378655022,1754944264875,-500.0,0.00020021,2]
[378655023,1754944264885,-1000.0,0.00020021,2]
[378655024,1754944264897,-1000.0,0.00020021,2]
[378655025,1754944264907,-1000.0,0.00020021,2]
[378655026,1754944264917,-380.01458645,0.00020021,2]
[378655027,1754944264927,-1000.0,0.00020021,2]
[378655028,1754944264937,-1000.0,0.00020021,2]
[378655029,1754944264947,-535.9525052,0.00020021,2]
[378655030,1754944264957,-1000.0,0.00020021,2]
[378655031,1754944264967,-1000.0,0.00020021,2]
[378655032,1754944264976,-500.0,0.00020021,2]
[378655033,1754944264988,-1000.0,0.00020021,2]
[378655034,1754944264998,-500.0,0.00020021,2]
[378655035,1754944265008,-500.86414136,0.00020021,2]
[378655036,1754944265018,-534.06675243,0.00020021,2]
[378655037,1754944265029,-1000.0,0.00020021,2]
[378655038,1754944265039,-1000.0,0.00020021,2]
[378655039,1754944265048,-1000.0,0.00020021,2]
[378655040,1754944265058,-1000.0,0.00020021,2]
[378655041,1754944265068,-507.53751155,0.00020021,2]
[378655042,1754944265078,-1000.0,0.00020021,2]
[378655043,1754944265089,-1000.0,0.00020021,2]
[378655044,1754944265099,-571.10111159,0.00020021,2]
[378655045,1754944265109,-989.56413626,0.00020021,2]
[378655046,1754944265120,-1000.0,0.00020021,2]
[378655047,1754944265131,-650.2418856,0.00020021,2]
[378655048,1754944265140,-1000.0,0.00020021,2]
[378655049,1754944265151,-1000.0,0.00020021,2]
[378655050,1754944265161,-1000.0,0.00020021,2]
[378655051,1754944265171,-151.0,0.00020021,2]
[378655052,1754944265181,-2124.623818,0.00020021,2]
[378655053,1754944265191,-2124.62381,0.00020021,2]
[378655054,1754944265201,-800.0,0.0002012,2]
[378655055,1754944265211,-488.4,0.00020172,2]
[378655056,1754944265222,-151.0,0.00020172,2]
[378655057,1754944265232,-151.0,0.00020184,2]
[378655058,1754944265242,-500.0,0.00020187,2]
[378655059,1754944265251,-637.489998,0.00020187,2]
[378655060,1754944265262,-850.71838349,0.0002021,2]